bitfinex-derivatives/quotes_BTCF0:USTF0_20250614
["timestamp","ask_amount","ask_price","bid_price","bid_amount"]
[1749884766185,1.00792288,105100.0,105090.0,0.04015972]
[1749884766385,1.00792288,105100.0,105090.0,0.02663229]
[1749884766687,1.00792288,105100.0,105090.0,0.04015969]
[1749884766887,1.00792288,105100.0,105090.0,0.04015968]
[1749884767082,1.00792288,105100.0,105090.0,0.02663229]
[1749884767288,1.00792288,105100.0,105090.0,0.0401597]
[1749884767487,1.00792288,105100.0,105090.0,0.02528741]
[1749884767888,1.00792288,105100.0,105090.0,0.04015973]
[1749884768287,1.00792288,105100.0,105090.0,0.02528744]
[1749884768487,1.00792288,105100.0,105090.0,0.02528758]
[1749884768687,1.00792288,105100.0,105090.0,0.04015983]
[1749884768887,1.00792288,105100.0,105090.0,0.04015987]
[1749884769086,1.00792288,105100.0,105090.0,0.04015972]
[1749884769283,1.00792288,105100.0,105090.0,0.02663229]
[1749884769483,1.00792288,105100.0,105090.0,0.02528739]
[1749884769690,1.00792288,105100.0,105090.0,0.04015968]
[1749884769893,1.00792288,105100.0,105090.0,0.04015989]
[1749884770393,1.00792288,105100.0,105090.0,0.04019109]
[1749884770596,1.00792288,105100.0,105090.0,0.04019111]
[1749884770891,1.00792288,105100.0,105090.0,0.04019105]
[1749884771094,1.00792288,105100.0,105090.0,0.01176]
[1749884771287,1.19188288,105100.0,105090.0,0.01176]
[1749884771494,1.19188288,105100.0,105090.0,0.02663236]
[1749884771789,1.19188288,105100.0,105090.0,0.0253187]
[1749884771996,1.19188288,105100.0,105090.0,0.02663236]
[1749884772183,1.19188288,105100.0,105090.0,0.0401911]
[1749884772388,1.19188288,105100.0,105090.0,0.01176]
[1749884772589,1.19188288,105100.0,105090.0,0.02663236]
[1749884772791,1.19188288,105100.0,105090.0,0.04018351]
[1749884772987,1.19188288,105100.0,105090.0,0.04019073]
[1749884773194,1.0778957,105100.0,105090.0,0.0401566]
[1749884773496,0.95949034,105100.0,105090.0,0.04013414]
[1749884773692,0.95949034,105100.0,105090.0,0.0401291]
[1749884773891,1.0778957,105100.0,105090.0,0.04012915]
[1749884774087,1.0778957,105100.0,105090.0,0.02525721]
[1749884774292,1.0778957,105100.0,105090.0,0.04013518]
[1749884774487,1.0778957,105100.0,105090.0,0.01176]
[1749884774694,1.0778957,105100.0,105090.0,0.02526321]
[1749884774894,1.19188288,105100.0,105090.0,0.02663194]
[1749884775093,1.19188288,105100.0,105090.0,0.04013514]
[1749884775295,1.19188288,105100.0,105090.0,0.01176]
[1749884775594,1.19188288,105100.0,105090.0,0.0252683]
[1749884775794,1.19188288,105100.0,105090.0,0.02663194]
[1749884775993,1.19188288,105100.0,105090.0,0.04014025]
[1749884776393,1.19188288,105100.0,105090.0,0.04014026]
[1749884776592,1.19188288,105100.0,105090.0,0.01176]
[1749884776791,1.0778957,105100.0,105090.0,0.01176]
[1749884776999,0.95949034,105100.0,105090.0,0.02663194]
[1749884777298,1.07347752,105100.0,105090.0,0.04014025]
[1749884777498,1.19188288,105100.0,105090.0,0.04014023]
[1749884778095,1.07347752,105100.0,105090.0,0.08308692]
[1749884778300,1.07347752,105100.0,105090.0,0.08309546]
[1749884778498,1.07347752,105100.0,105090.0,0.06822354]
[1749884778696,1.07347752,105100.0,105090.0,0.08309554]
[1749884778896,1.07347752,105100.0,105090.0,0.08309553]
[1749884779299,1.07347752,105100.0,105090.0,0.08309556]
[1749884779799,0.88951752,105100.0,105090.0,0.08312003]
[1749884779998,1.85755752,105100.0,105090.0,0.0682481]
[1749884780200,1.85755752,105100.0,105090.0,0.06957874]
[1749884780406,1.85755752,105100.0,105090.0,0.08312149]
[1749884780602,1.85755752,105100.0,105090.0,0.08312171]
[1749884781102,1.85755752,105100.0,105090.0,0.08312168]
[1749884781898,1.85755752,105100.0,105090.0,0.08312164]
[1749884782198,1.85755752,105100.0,105090.0,0.08312167]
[1749884782398,1.85755752,105100.0,105090.0,0.08312163]
[1749884782599,1.85755752,105100.0,105090.0,0.06957874]
[1749884782802,1.85755752,105100.0,105090.0,0.08312164]
[1749884783007,1.97596288,105100.0,105090.0,0.04017501]
[1749884783403,1.97596288,105100.0,105090.0,0.01176]
[1749884783592,1.97596288,105100.0,105090.0,0.06959222]
[1749884783792,1.97596288,105100.0,105090.0,0.04017495]
[1749884783992,1.97596288,105100.0,105090.0,0.02530292]
[1749884784298,1.97596288,105100.0,105090.0,0.02663205]
[1749884784504,1.97596288,105100.0,105090.0,0.0401842]
[1749884784703,1.97596288,105100.0,105090.0,0.02531212]
[1749884784903,1.97596288,105100.0,105090.0,0.04018417]
[1749884785104,1.97596288,105100.0,105090.0,0.02663205]
[1749884785308,1.97596288,105100.0,105090.0,0.0401842]
[1749884785507,1.97596288,105100.0,105090.0,0.04018421]
[1749884785705,1.97596288,105100.0,105090.0,0.02531211]
[1749884786008,1.97596288,105100.0,105090.0,0.04018421]
[1749884786306,1.97596288,105100.0,105090.0,0.08315631]
[1749884786506,1.97596288,105100.0,105090.0,0.06960419]
[1749884786703,1.97492288,105100.0,105090.0,0.08315592]
[1749884786906,1.97492288,105100.0,105090.0,0.06960398]
[1749884787104,1.97492288,105100.0,105090.0,0.06825857]
[1749884787303,1.97492288,105100.0,105090.0,0.08311989]
[1749884787504,1.97492288,105100.0,105090.0,0.0696039]
[1749884787808,1.97492288,105100.0,105090.0,0.0831196]
[1749884788010,1.97492288,105100.0,105090.0,0.06824785]
[1749884788210,1.97492288,105100.0,105090.0,0.06824784]
[1749884788405,1.97492288,105100.0,105090.0,0.06960389]
[1749884788904,1.97492288,105100.0,105090.0,0.08311962]
[1749884789307,1.97492288,105100.0,105090.0,0.08311958]
[1749884789503,1.97492288,105100.0,105090.0,0.06960389]
[1749884789711,1.97492288,105100.0,105090.0,0.08311647]
[1749884790008,1.97492288,105100.0,105090.0,0.08311651]
[1749884790209,1.97492288,105100.0,105090.0,0.06824476]
[1749884790510,1.97492288,105100.0,105090.0,0.08311652]
[1749884790709,1.97492288,105100.0,105090.0,0.06824471]
[1749884791009,1.97492288,105100.0,105090.0,0.05473214]
[1749884791304,1.97492288,105100.0,105090.0,0.08311652]
[1749884791509,1.97492288,105100.0,105090.0,0.06960389]
[1749884791703,1.97492288,105100.0,105090.0,0.06824474]
[1749884791910,1.97492288,105100.0,105090.0,0.08311649]
[1749884792105,1.97492288,105100.0,105090.0,0.06960389]
[1749884792312,1.97492288,105100.0,105090.0,0.08311648]
[1749884792505,1.97492288,105100.0,105090.0,0.05473214]
[1749884792707,1.97492288,105100.0,105090.0,0.08311649]
[1749884792910,1.97492288,105100.0,105090.0,0.08311609]
[1749884793110,1.97492288,105100.0,105090.0,0.06960389]
[1749884793505,1.97492288,105100.0,105090.0,0.08311654]
[1749884793806,1.97492288,105100.0,105090.0,0.06960389]
[1749884794010,1.97492288,105100.0,105090.0,0.0682446]
[1749884794213,1.97492288,105100.0,105090.0,0.08311635]
[1749884794407,1.97492288,105100.0,105090.0,0.08311606]
[1749884794607,1.97492288,105100.0,105090.0,0.06960425]
[1749884794914,1.97492288,105100.0,105090.0,0.08316584]
[1749884795310,1.97492288,105100.0,105090.0,0.08316588]
[1749884795914,1.97492288,105100.0,105090.0,0.08316596]
[1749884796106,1.97492288,105100.0,105090.0,0.02843382]
[1749884796308,0.1902425,105080.0,105070.0,1.41251479]
[1749884796601,0.75427355,105080.0,105070.0,1.41261479]
[1749884796807,0.75452482,105080.0,105070.0,1.41261479]
[1749884797006,0.75452482,105080.0,105070.0,1.22837479]
[1749884797201,0.75452482,105080.0,105070.0,1.44381479]
[1749884797404,0.75583003,105080.0,105070.0,1.44781479]
[1749884797807,0.75583003,105080.0,105070.0,1.45081479]
[1749884798008,0.64184285,105080.0,105070.0,1.45081479]
[1749884798207,0.75583003,105080.0,105070.0,1.45081479]
[1749884798414,0.66683743,105080.0,105070.0,1.45081479]
[1749884798914,0.66683743,105080.0,105070.0,1.40324989]
[1749884799312,0.75583003,105080.0,105070.0,1.40324989]
[1749884799511,0.75583003,105080.0,105070.0,1.34381028]
[1749884799707,1.53827003,105080.0,105070.0,0.05156088]
[1749884800017,0.85053003,105080.0,105070.0,0.42606158]
[1749884800413,0.85053003,105080.0,105070.0,0.48906158]
[1749884800816,0.70334285,105080.0,105070.0,0.48906158]
[1749884801118,0.75583003,105080.0,105070.0,0.51406158]
[1749884801617,0.75633257,105080.0,105070.0,0.51406158]
[1749884802210,0.30653997,105080.0,105070.0,0.32982158]
[1749884802408,0.30653997,105080.0,105070.0,0.51406158]
[1749884802820,0.39553257,105080.0,105070.0,0.32982158]
[1749884803017,0.39553257,105080.0,105070.0,0.51406158]
[1749884803612,0.75633257,105080.0,105070.0,0.51406158]
[1749884808322,0.75633257,105080.0,105070.0,0.58479209]
[1749884808724,0.75633257,105080.0,105070.0,0.57001933]
[1749884808916,0.75633257,105080.0,105070.0,0.57002404]
[1749884809117,0.75633257,105080.0,105070.0,0.57002407]
[1749884809717,0.75633257,105080.0,105070.0,0.57002419]
[1749884809919,0.75633257,105080.0,105070.0,0.57002423]
[1749884810224,0.75633257,105080.0,105070.0,0.57002427]
[1749884810833,0.75633257,105080.0,105070.0,0.5848478]
[1749884811129,0.75633257,105080.0,105070.0,0.57147968]
[1749884811335,0.75633257,105080.0,105070.0,0.58484784]
[1749884811634,0.75633257,105080.0,105070.0,0.57147968]
[1749884811834,0.75633257,105080.0,105070.0,0.58898616]
[1749884812034,0.75633257,105080.0,105070.0,0.57416258]
[1749884812636,0.75633257,105080.0,105070.0,0.56079442]
[1749884812831,0.75633257,105080.0,105070.0,0.58898271]
[1749884813037,0.75633257,105080.0,105070.0,0.57416259]
[1749884813243,0.75633257,105080.0,105070.0,0.57561454]
[1749884813442,0.75633257,105080.0,105070.0,0.5889827]
[1749884813737,0.75633257,105080.0,105070.0,0.58898267]
[1749884814134,0.75633257,105080.0,105070.0,0.58898271]
[1749884814438,0.75633257,105080.0,105070.0,0.4047427]
[1749884814638,0.75633257,105080.0,105070.0,0.5889827]
[1749884814938,0.75633257,105080.0,105070.0,0.58898255]
[1749884815336,0.75625314,105080.0,105070.0,0.58898255]
[1749884815633,0.75625314,105080.0,105070.0,0.58898236]
[1749884815839,0.78685314,105080.0,105070.0,0.58897421]
[1749884816039,0.78685314,105080.0,105070.0,0.57416243]
[1749884816240,0.78685314,105080.0,105070.0,0.58897441]
[1749884816441,0.78685314,105080.0,105070.0,0.58895717]
[1749884816642,0.78685314,105080.0,105070.0,0.58895713]
[1749884817033,0.78685314,105080.0,105070.0,0.56079442]
[1749884817239,0.78685314,105080.0,105070.0,0.58895716]
[1749884817436,0.78685314,105080.0,105070.0,0.57562949]
[1749884818134,0.78685314,105080.0,105070.0,0.57416602]
[1749884818334,0.78685314,105080.0,105070.0,0.58899904]
[1749884818535,0.78685314,105080.0,105070.0,0.58899899]
[1749884818738,0.78685314,105080.0,105070.0,0.56079442]
[1749884818939,0.78685314,105080.0,105070.0,0.58899904]
[1749884819243,0.78685314,105080.0,105070.0,0.58899902]
[1749884819436,0.78685314,105080.0,105070.0,0.57416395]
[1749884819633,0.78685314,105080.0,105070.0,0.57562949]
[1749884819941,0.78685314,105080.0,105070.0,0.56079442]
[1749884820244,0.78685314,105080.0,105070.0,0.58899903]
[1749884820438,0.78685314,105080.0,105070.0,0.56079442]
[1749884820641,0.78685314,105080.0,105070.0,0.57416399]
[1749884820943,0.78685314,105080.0,105070.0,0.57002565]
[1749884821136,0.81985314,105080.0,105070.0,0.58485722]
[1749884821331,0.81985314,105080.0,105070.0,0.57148764]
[1749884821537,0.81985314,105080.0,105070.0,0.58485719]
[1749884821742,0.81985314,105080.0,105070.0,0.57002562]
[1749884822045,0.81985314,105080.0,105070.0,0.58485721]
[1749884822239,0.81985314,105080.0,105070.0,0.58485716]
[1749884822441,0.81985314,105080.0,105070.0,0.55665607]
[1749884822633,0.81985314,105080.0,105070.0,0.58485728]
[1749884823033,0.81985314,105080.0,105070.0,0.57002564]
[1749884823545,0.81985314,105080.0,105070.0,0.58485728]
[1749884823846,0.81985314,105080.0,105070.0,0.58485621]
[1749884824036,0.81985314,105080.0,105070.0,0.58485599]
[1749884824235,0.85055314,105080.0,105070.0,0.58485597]
[1749884824445,0.48975314,105080.0,105070.0,0.58485596]
[1749884824635,0.48975314,105080.0,105070.0,0.58485594]
[1749884824839,0.48975314,105080.0,105070.0,0.55665607]
[1749884825342,0.48975314,105080.0,105070.0,0.58484371]
[1749884825545,0.85055314,105080.0,105070.0,0.58484196]
[1749884825744,0.85055314,105080.0,105070.0,0.57001401]
[1749884825945,0.85055314,105080.0,105070.0,0.57562601]
[1749884826246,0.85055314,105080.0,105070.0,0.58898414]
[1749884826644,0.85055314,105080.0,105070.0,0.5889841]
[1749884826943,0.85055314,105080.0,105070.0,0.50965252]
[1749884827147,0.85055314,105080.0,105070.0,0.52448298]
[1749884827550,0.85055314,105080.0,105070.0,0.51112485]
[1749884827740,0.85055314,105080.0,105070.0,0.52448279]
[1749884827941,0.85055314,105080.0,105070.0,0.32688485]
[1749884828138,0.85055314,105080.0,105070.0,0.52276314]
[1749884828347,0.85055314,105080.0,105070.0,0.49457442]
[1749884828650,0.85055314,105080.0,105070.0,0.50940485]
[1749884829048,0.85055314,105080.0,105070.0,0.52276108]
[1749884829241,0.85055314,105080.0,105070.0,0.52276071]
[1749884829442,0.85055314,105080.0,105070.0,0.52276038]
[1749884829642,0.85055314,105080.0,105070.0,0.52276035]
[1749884829941,0.85055314,105080.0,105070.0,0.50940449]
[1749884830143,0.85055314,105080.0,105070.0,0.50793035]
[1749884830343,0.85055314,105080.0,105070.0,0.52276042]
[1749884830547,0.85055314,105080.0,105070.0,0.52276043]
[1749884830747,0.85055314,105080.0,105070.0,0.50940449]
[1749884831148,0.85055314,105080.0,105070.0,0.52276042]
[1749884831750,0.85055314,105080.0,105070.0,0.49457442]
[1749884831952,0.85055314,105080.0,105070.0,0.52276039]
[1749884832252,0.85055314,105080.0,105070.0,0.52275689]
[1749884832751,0.85055314,105080.0,105070.0,0.52275692]
[1749884832952,0.85055314,105080.0,105070.0,0.50950382]
[1749884833147,0.85055314,105080.0,105070.0,0.52285975]
[1749884833352,0.85055314,105080.0,105070.0,0.52285961]
[1749884833953,0.85055314,105080.0,105070.0,0.52286009]
[1749884834352,0.85055314,105080.0,105070.0,0.50803349]
[1749884834553,0.85055314,105080.0,105070.0,0.50803346]
[1749884834752,0.85055314,105080.0,105070.0,0.49467722]
[1749884834952,0.85055314,105080.0,105070.0,0.52286011]
[1749884835150,0.85055314,105080.0,105070.0,0.52286009]
[1749884835452,0.85055314,105080.0,105070.0,0.52286007]
[1749884835754,0.85055314,105080.0,105070.0,0.50950382]
[1749884836054,0.85055314,105080.0,105070.0,0.49467722]
[1749884836249,0.85055314,105080.0,105070.0,0.50803351]
[1749884836454,0.85055314,105080.0,105070.0,0.52286123]
[1749884836745,0.85055314,105080.0,105070.0,0.52286127]
[1749884836950,0.85055314,105080.0,105070.0,0.49467722]
[1749884837154,0.85055314,105080.0,105070.0,0.52286128]
[1749884837354,0.85055314,105080.0,105070.0,0.5080335]
[1749884837553,0.85055314,105080.0,105070.0,0.50950498]
[1749884837850,0.85055314,105080.0,105070.0,0.49467722]
[1749884838050,0.85055314,105080.0,105070.0,0.52286126]
[1749884838250,0.85055314,105080.0,105070.0,0.5080335]
[1749884838452,0.85055314,105080.0,105070.0,0.52286124]
[1749884838852,0.85055314,105080.0,105070.0,0.52286101]
[1749884839252,0.85055314,105080.0,105070.0,0.33260031]
[1749884839553,0.85055314,105080.0,105070.0,0.33260025]
[1749884839852,0.85055314,105080.0,105070.0,0.33259574]
[1749884840353,0.85055314,105080.0,105070.0,0.33261951]
[1749884840654,0.85055314,105080.0,105070.0,0.33261948]
[1749884841050,0.85055314,105080.0,105070.0,0.31779733]
[1749884841253,0.85055314,105080.0,105070.0,0.33261865]
[1749884841554,0.85055314,105080.0,105070.0,0.33261861]
[1749884841748,0.85055314,105080.0,105070.0,0.3326186]
[1749884841948,0.85055314,105080.0,105070.0,0.33261862]
[1749884842351,0.85055314,105080.0,105070.0,0.31923784]
[1749884842552,0.85055314,105080.0,105070.0,0.31923901]
[1749884842748,0.85055314,105080.0,105070.0,0.33261977]
[1749884842955,0.85055314,105080.0,105070.0,0.3326198]
[1749884843154,0.85055314,105080.0,105070.0,0.33261939]
[1749884843346,0.85055314,105080.0,105070.0,0.15009938]
[1749884843546,0.85055314,105080.0,105070.0,0.30211938]
[1749884843842,0.85055314,105080.0,105070.0,0.28873903]
[1749884844047,0.85055314,105080.0,105070.0,0.47899973]
[1749884844249,0.85055314,105080.0,105070.0,0.46417722]
[1749884844454,0.85055314,105080.0,105070.0,0.49240731]
[1749884844656,0.85055314,105080.0,105070.0,0.30214661]
[1749884844856,0.73656596,105080.0,105070.0,0.46417712]
[1749884845051,0.85055314,105080.0,105070.0,0.28732774]
[1749884845251,0.85055314,105080.0,105070.0,0.30212007]
[1749884845453,0.85055314,105080.0,105070.0,0.30211993]
[1749884845650,0.85055314,105080.0,105070.0,0.30210835]
[1749884846048,0.85055314,105080.0,105070.0,0.30210833]
[1749884846356,0.85055314,105080.0,105070.0,0.28873827]
[1749884846550,0.85055314,105080.0,105070.0,0.30211337]
[1749884846757,0.85055314,105080.0,105070.0,0.30211361]
[1749884846957,0.85055314,105080.0,105070.0,0.11959365]
[1749884847154,0.85055314,105080.0,105070.0,0.30211366]
[1749884847545,0.85055314,105080.0,105070.0,0.30212532]
[1749884847745,0.85055314,105080.0,105070.0,0.46417712]
[1749884848059,0.85055314,105080.0,105070.0,0.49238592]
[1749884848254,0.85055314,105080.0,105070.0,0.28874997]
[1749884848454,0.85055314,105080.0,105070.0,0.49238587]
[1749884848658,0.85055314,105080.0,105070.0,0.47901057]
[1749884848955,0.85055314,105080.0,105070.0,0.49238594]
[1749884849156,0.85055314,105080.0,105070.0,0.47901057]
[1749884849344,0.85055314,105080.0,105070.0,0.46417712]
[1749884849549,0.85055314,105080.0,105070.0,0.47901057]
[1749884849750,0.85055314,105080.0,105070.0,0.49238575]
[1749884849952,0.85055314,105080.0,105070.0,0.46417712]
[1749884850257,0.85055314,105080.0,105070.0,0.30212533]
[1749884850453,0.85055314,105080.0,105070.0,0.27391652]
[1749884850655,0.85055314,105080.0,105070.0,0.30212523]
[1749884850855,0.85055314,105080.0,105070.0,0.30212524]
[1749884851057,0.85055314,105080.0,105070.0,0.30213006]
[1749884851257,0.85055314,105080.0,105070.0,0.28732014]
[1749884851758,0.85055314,105080.0,105070.0,0.30215369]
[1749884852058,0.85055314,105080.0,105070.0,0.30215318]
[1749884852660,0.85055314,105080.0,105070.0,0.30213874]
[1749884852847,0.85055314,105080.0,105070.0,0.28731966]
[1749884853047,0.85055314,105080.0,105070.0,0.28873561]
[1749884853251,0.85055314,105080.0,105070.0,0.28731967]
[1749884853454,0.85055314,105080.0,105070.0,0.30213876]
[1749884853652,0.85055314,105080.0,105070.0,0.27391652]
[1749884853852,0.85055314,105080.0,105070.0,0.30213874]
[1749884854149,0.85055314,105080.0,105070.0,0.10621561]
[1749884854354,0.85055314,105080.0,105070.0,0.28636326]
[1749884854755,0.85055314,105080.0,105070.0,0.30118235]
[1749884854950,0.85055314,105080.0,105070.0,0.28636326]
[1749884855462,0.85055314,105080.0,105070.0,0.28777562]
[1749884855661,0.85055314,105080.0,105070.0,0.28636552]
[1749884855862,0.85055314,105080.0,105070.0,0.30119284]
[1749884856065,0.85055314,105080.0,105070.0,0.27295652]
[1749884856263,0.85055314,105080.0,105070.0,0.30120538]
[1749884856454,0.85055314,105080.0,105070.0,0.28637806]
[1749884856655,0.85055314,105080.0,105070.0,0.30120534]
[1749884856859,0.85055314,105080.0,105070.0,0.30120533]
[1749884857054,0.85055314,105080.0,105070.0,0.30120194]
[1749884857259,0.85055314,105080.0,105070.0,0.30119888]
[1749884857457,0.85055314,105080.0,105070.0,0.27295652]
[1749884857764,0.85055314,105080.0,105070.0,0.30119888]
[1749884857958,0.85055314,105080.0,105070.0,0.30118382]
[1749884858152,0.85055314,105080.0,105070.0,0.30119065]
[1749884858350,0.85055314,105080.0,105070.0,0.3011893]
[1749884859061,0.85055314,105080.0,105070.0,0.30119837]
[1749884859262,0.85055314,105080.0,105070.0,0.30119822]
[1749884859664,0.85055314,105080.0,105070.0,0.30119817]
[1749884859862,0.85055314,105080.0,105070.0,0.28637434]
[1749884860057,0.85055314,105080.0,105070.0,0.30119817]
[1749884860265,0.85055314,105080.0,105070.0,0.30119819]
[1749884860463,0.85055314,105080.0,105070.0,0.28637435]
[1749884860959,0.85055314,105080.0,105070.0,0.30120638]
[1749884861160,0.85055314,105080.0,105070.0,0.2877885]
[1749884861361,0.85055314,105080.0,105070.0,0.30120621]
[1749884862067,0.85055314,105080.0,105070.0,0.2877885]
[1749884862256,0.85055314,105080.0,105070.0,0.30120619]
[1749884862566,0.85055314,105080.0,105070.0,0.28637421]
[1749884862867,0.85055314,105080.0,105070.0,0.30120624]
[1749884863468,0.85055314,105080.0,105070.0,0.30120626]
[1749884863666,0.85055314,105080.0,105070.0,0.30122364]
[1749884863969,0.85055314,105080.0,105070.0,0.27295652]
[1749884864170,0.85055314,105080.0,105070.0,0.28778854]
[1749884864365,0.85055314,105080.0,105070.0,0.2863924]
[1749884864567,0.85055314,105080.0,105070.0,0.30122439]
[1749884864966,0.85055314,105080.0,105070.0,0.28778854]
[1749884865167,0.85055314,105080.0,105070.0,0.28639239]
[1749884865471,0.85055314,105080.0,105070.0,0.30122441]
[1749884865671,0.85055314,105080.0,105070.0,0.30122439]
[1749884865867,0.85055314,105080.0,105070.0,0.2863924]
[1749884866070,0.85055314,105080.0,105070.0,0.30124888]
[1749884866264,0.85055314,105080.0,105070.0,0.28781301]
[1749884866473,0.85055314,105080.0,105070.0,0.30124887]
[1749884866767,0.85055314,105080.0,105070.0,0.27295652]
[1749884866970,0.85055314,105080.0,105070.0,0.28639221]
[1749884867168,0.85055314,105080.0,105070.0,0.30124889]
[1749884867369,0.85055314,105080.0,105070.0,0.28781301]
[1749884867568,0.85055314,105080.0,105070.0,0.3012489]
[1749884867775,0.85055314,105080.0,105070.0,0.27295652]
[1749884868073,0.85055314,105080.0,105070.0,0.30124887]
[1749884868375,0.85055314,105080.0,105070.0,0.28639226]
[1749884868569,0.85055314,105080.0,105070.0,0.28367466]
[1749884868869,0.85055314,105080.0,105070.0,0.26881817]
[1749884869062,0.85055314,105080.0,105070.0,0.2971155]
[1749884869265,0.85055314,105080.0,105070.0,0.28367466]
[1749884869465,0.85055314,105080.0,105070.0,0.28225902]
[1749884869768,0.85055314,105080.0,105070.0,0.301254]
[1749884869967,0.85055314,105080.0,105070.0,0.30125497]
[1749884870568,0.85055314,105080.0,105070.0,0.29711662]
[1749884870769,0.73656596,105080.0,105070.0,0.28366501]
[1749884870967,0.85055314,105080.0,105070.0,0.28366817]
[1749884871169,0.85055314,105080.0,105070.0,0.29717694]
[1749884871667,0.85055314,105080.0,105070.0,0.29717693]
[1749884871873,0.85055314,105080.0,105070.0,0.29717692]
[1749884872061,0.85055314,105080.0,105070.0,0.29717676]
[1749884872266,0.85055314,105080.0,105070.0,0.28368683]
[1749884872467,0.85055314,105080.0,105070.0,0.2971768]
[1749884872973,0.85055314,105080.0,105070.0,0.28368683]
[1749884873167,0.85055314,105080.0,105070.0,0.11561638]
[1749884873369,0.85055314,105080.0,105070.0,0.0710002]
[1749884873569,0.85055314,105080.0,105070.0,0.11563103]
[1749884873869,0.85055314,105080.0,105070.0,0.0710268]
[1749884874070,0.85055314,105080.0,105070.0,0.0575107]
[1749884874271,1.71904054,105080.0,105070.0,0.07102683]
[1749884874665,1.71904054,105080.0,105070.0,0.07102699]
[1749884874865,1.71904054,105080.0,105070.0,0.0561581]
[1749884875062,1.71904054,105080.0,105070.0,0.07106406]
[1749884875263,1.80805948,105080.0,105070.0,0.07106951]
[1749884875468,0.85057948,105080.0,105070.0,0.05619506]
[1749884875671,1.80845948,105080.0,105070.0,0.0603334]
[1749884875868,1.80845948,105080.0,105070.0,0.07520785]
[1749884876173,1.80845948,105080.0,105070.0,0.06165477]
[1749884876370,1.92244647,105080.0,105070.0,0.10496047]
[1749884876575,1.83342772,105080.0,105070.0,0.04678032]
[1749884876769,1.95183308,105080.0,105070.0,0.06030086]
[1749884876974,1.95183308,105080.0,105070.0,0.06035706]
[1749884877168,0.99395308,105080.0,105070.0,0.07523227]
[1749884877373,1.95295308,105080.0,105070.0,0.03265599]
[1749884877576,0.99395308,105080.0,105070.0,0.03269549]
[1749884877772,0.8799659,105080.0,105070.0,0.02855715]
[1749884877977,1.8388859,105080.0,105070.0,0.02855715]
[1749884878177,1.8388859,105080.0,105070.0,0.02855718]
[1749884878384,0.1902788,105060.0,105050.0,0.66676041]
[1749884878678,0.55158134,105060.0,105050.0,0.69531755]
[1749884878883,0.66556852,105060.0,105050.0,0.60016979]
[1749884879177,0.66556852,105060.0,105050.0,0.6001738]
[1749884879377,0.66556852,105060.0,105050.0,0.512173]
[1749884879378,0.78078148,105060.0,105050.0,0.512173]
[1749884879575,0.78078148,105060.0,105050.0,0.54373369]
[1749884879879,0.78078148,105060.0,105050.0,0.5477337]
[1749884880270,0.78078148,105060.0,105050.0,0.54773373]
[1749884880476,0.55280712,105060.0,105050.0,0.519173]
[1749884880678,0.78078148,105060.0,105050.0,0.54769592]
[1749884880885,0.78078148,105060.0,105050.0,0.53283293]
[1749884881178,0.85564717,105060.0,105050.0,0.54769592]
[1749884881574,0.78078148,105060.0,105050.0,0.54772766]
[1749884882081,0.78078148,105060.0,105050.0,0.54772767]
[1749884882678,0.78078148,105060.0,105050.0,0.54772766]
[1749884882878,0.78078148,105060.0,105050.0,0.54772762]
[1749884883279,0.78078148,105060.0,105050.0,0.53286468]
[1749884883477,0.78078148,105060.0,105050.0,0.54774021]
[1749884883682,0.78078148,105060.0,105050.0,0.54774018]
[1749884883985,0.78078148,105060.0,105050.0,0.60717979]
[1749884884178,0.78078148,105060.0,105050.0,0.59348814]
[1749884884378,0.78078148,105060.0,105050.0,0.53404853]
[1749884884579,0.78078148,105060.0,105050.0,0.53286469]
[1749884884877,0.78078148,105060.0,105050.0,0.53286466]
[1749884885483,0.78078148,105060.0,105050.0,0.53404853]
[1749884885683,0.78078148,105060.0,105050.0,0.54774019]
[1749884885985,0.78078148,105060.0,105050.0,0.54774888]
[1749884886285,0.78078148,105060.0,105050.0,0.54774891]
[1749884886585,0.78078148,105060.0,105050.0,0.53404853]
[1749884886586,0.85579949,105060.0,105050.0,0.53404853]
[1749884886783,0.85579949,105060.0,105050.0,0.54774873]
[1749884886983,0.85579949,105060.0,105050.0,0.27042471]
[1749884887285,0.95009949,105060.0,105050.0,0.45207452]
[1749884887483,0.95009949,105060.0,105050.0,0.45207804]
[1749884887682,0.95009949,105060.0,105050.0,0.45207807]
[1749884887984,0.95009949,105060.0,105050.0,0.45208574]
[1749884888387,0.95009949,105060.0,105050.0,0.43833006]
[1749884888580,0.95009949,105060.0,105050.0,0.4520881]
[1749884888774,0.95009949,105060.0,105050.0,0.49467134]
[1749884888978,0.95009949,105060.0,105050.0,0.49467137]
[1749884889184,0.95009949,105060.0,105050.0,0.30439307]
[1749884889683,0.95009949,105060.0,105050.0,0.48091322]
[1749884889885,0.95009949,105060.0,105050.0,0.49468969]
[1749884890188,0.95009949,105060.0,105050.0,0.49469078]
[1749884890385,1.40609149,105060.0,105050.0,0.06336082]
[1749884890581,0.1903149,105040.0,105030.0,0.61867202]
[1749884890780,0.30430208,105040.0,105030.0,0.59133241]
[1749884891086,0.30430208,105040.0,105030.0,0.60574921]
[1749884891289,0.30480462,105040.0,105030.0,0.60574921]
[1749884891489,0.3060304,105040.0,105030.0,0.42414921]
[1749884891688,0.3060304,105040.0,105030.0,1.11053639]
[1749884891893,0.3060304,105040.0,105030.0,1.11253639]
[1749884892295,0.3060304,105040.0,105030.0,1.08253639]
[1749884892788,0.3060304,105040.0,105030.0,0.96854921]
[1749884893295,0.3060304,105040.0,105030.0,0.96858921]
[1749884894097,0.3060304,105040.0,105030.0,0.72177639]
[1749884894290,0.3060304,105040.0,105030.0,1.08257639]
[1749884894994,0.3060304,105040.0,105030.0,0.96858921]
[1749884895190,0.3060304,105040.0,105030.0,0.99858921]
[1749884895389,0.3060304,105040.0,105030.0,1.11257639]
[1749884895786,0.19204322,105040.0,105030.0,1.11257639]
[1749884895993,0.00172832,105040.0,105030.0,1.11257639]
[1749884896190,0.00172832,105040.0,105030.0,1.172016]
[1749884896396,0.1157155,105040.0,105030.0,1.172016]
[1749884897401,0.3060284,105040.0,105030.0,0.87638882]
[1749884897603,0.1157155,105040.0,105030.0,1.142016]
[1749884898302,0.1157155,105040.0,105030.0,1.09745889]
[1749884899403,0.3060284,105040.0,105030.0,1.09745889]
[1749884900803,0.30653094,105040.0,105030.0,1.09745889]
[1749884902504,0.30653094,105040.0,105030.0,1.03822892]
[1749884902710,0.30653094,105040.0,105030.0,1.16696366]
[1749884902903,0.30653094,105040.0,105030.0,1.24111959]
[1749884903105,0.30653094,105040.0,105030.0,1.25586719]
[1749884903301,0.30653094,105040.0,105030.0,1.2558672]
[1749884903807,0.30653094,105040.0,105030.0,1.25586723]
[1749884904509,0.30653094,105040.0,105030.0,1.25588209]
[1749884904709,0.30653094,105040.0,105030.0,1.24111967]
[1749884904904,0.30653094,105040.0,105030.0,1.22796097]
[1749884905211,0.19254376,105040.0,105030.0,1.25588736]
[1749884905411,0.30653094,105040.0,105030.0,1.1419002]
[1749884905609,0.30653094,105040.0,105030.0,1.24272342]
[1749884905911,0.30653094,105040.0,105030.0,1.14190376]
[1749884906109,0.30653094,105040.0,105030.0,1.25589098]
[1749884906307,0.30653094,105040.0,105030.0,1.13905748]